bitfinex-derivatives/quotes_BTCF0:USTF0_20250422
["timestamp","ask_amount","ask_price","bid_price","bid_amount"]
[1745291246868,0.3608,88116.0,88111.0,0.2269829]
[1745291247170,0.3608,88116.0,88111.0,0.2259829]
[1745291247370,0.1898409,88119.0,88111.0,0.2259829]
[1745291247564,0.07636,88119.0,88111.0,0.30078003]
[1745291247761,0.07636,88119.0,88118.0,0.1134819]
[1745291248161,0.07636,88119.0,88118.0,0.1124819]
[1745291248769,0.07636,88119.0,88118.0,0.1740819]
[1745291249270,0.07736,88119.0,88118.0,0.1740819]
[1745291249677,0.07636,88119.0,88118.0,0.1740819]
[1745291250374,0.07736,88119.0,88118.0,0.1740819]
[1745291251471,0.002,88119.0,88118.0,0.6989659]
[1745291252186,0.001,88119.0,88118.0,0.8909659]
[1745291252869,0.001,88119.0,88118.0,0.8910459]
[1745291253076,0.1771725,88126.0,88125.0,0.1134729]
[1745291253470,0.0637,88126.0,88125.0,0.1134729]
[1745291254178,0.0637,88126.0,88125.0,0.1465729]
[1745291254679,0.0637,88126.0,88125.0,0.1134729]
[1745291254879,0.0647,88126.0,88125.0,0.1134729]
[1745291255081,0.1781716,88126.0,88125.0,0.1135529]
[1745291255276,0.3711716,88126.0,88125.0,0.1135529]
[1745291255471,0.3711716,88126.0,88125.0,0.1134729]
[1745291255776,0.3711716,88126.0,88125.0,0.1135529]
[1745291256378,0.3701716,88126.0,88125.0,0.1135529]
[1745291256567,0.1134806,88119.0,88118.0,0.4114]
[1745291256773,0.1134844,88116.0,88115.0,0.000108]
[1745291256977,0.3434844,88116.0,88115.0,0.1134844]
[1745291257178,0.5354844,88116.0,88115.0,0.1135644]
[1745291257377,0.4684844,88116.0,88115.0,8e-05]
[1745291258079,0.4694844,88116.0,88115.0,8e-05]
[1745291259567,0.355,88116.0,88115.0,0.00108]
[1745291259877,0.255,88116.0,88115.0,0.1145657]
[1745291260081,0.33136,88116.0,88115.0,0.1145657]
[1745291260578,0.4448444,88116.0,88115.0,0.1145657]
[1745291260777,0.33136,88116.0,88115.0,0.1145657]
[1745291261468,0.26836,88116.0,88115.0,0.2280537]
[1745291261668,0.26836,88116.0,88115.0,0.2591537]
[1745291261868,0.192,88116.0,88115.0,0.2591537]
[1745291262267,0.0322,88120.0,88115.0,0.2591537]
[1745291262268,0.0322,88120.0,88119.0,0.1134806]
[1745291263069,0.0322,88120.0,88119.0,0.1440806]
[1745291264369,0.1456793,88120.0,88119.0,0.1440806]
[1745291264576,0.1771793,88120.0,88119.0,0.1440806]
[1745291265486,0.1771793,88120.0,88119.0,0.1450806]
[1745291266173,0.1771793,88120.0,88119.0,0.1440806]
[1745291266378,0.0637,88120.0,88119.0,0.1460806]
[1745291267081,0.1771793,88120.0,88119.0,0.1460806]
[1745291267682,0.0637,88120.0,88119.0,0.1460806]
[1745291268780,0.0637,88120.0,88119.0,0.1450806]
[1745291269386,0.0637,88120.0,88119.0,0.1440806]
[1745291269571,0.0637,88120.0,88119.0,0.1450806]
[1745291270973,0.0637,88120.0,88119.0,0.1144806]
[1745291272788,0.0322,88120.0,88119.0,0.1468806]
[1745291273376,0.0322,88120.0,88119.0,0.1458806]
[1745291273581,0.0322,88120.0,88119.0,0.1468806]
[1745291274786,0.0322,88120.0,88119.0,0.1478806]
[1745291274989,0.1134844,88116.0,88115.0,1e-07]
[1745291275289,0.1134844,88116.0,88093.0,0.0001458]
[1745291275290,0.1134999,88104.0,88093.0,0.0001458]
[1745291275488,0.1134999,88104.0,88100.0,0.00170261]
[1745291275489,1.2013799,88104.0,88100.0,0.00170261]
[1745291276187,1.3933799,88104.0,88100.0,0.00170261]
[1745291276493,1.3933799,88104.0,88103.0,0.00117019]
[1745291277892,1.3943799,88104.0,88103.0,0.00017019]
[1745291278190,1.4276799,88104.0,88103.0,0.00017019]
[1745291278393,1.4606799,88104.0,88103.0,0.00017019]
[1745291280781,1.4607199,88104.0,88103.0,0.00017019]
[1745291281786,1.0999199,88104.0,88103.0,0.00017019]
[1745291284684,1.0989199,88104.0,88103.0,0.00025019]
[1745291284885,1.1009199,88104.0,88103.0,0.00025019]
[1745291286192,1.1009199,88104.0,88103.0,0.11375139]
[1745291286387,0.69742,88104.0,88103.0,0.11375139]
[1745291286588,0.8109199,88104.0,88103.0,0.11375139]
[1745291286990,0.8109199,88104.0,88103.0,0.00025019]
[1745291287181,0.9009199,88104.0,88103.0,0.00025019]
[1745291287381,0.8109199,88104.0,88103.0,0.00025019]
[1745291287588,0.8099199,88104.0,88103.0,0.00025019]
[1745291287880,0.8099199,88104.0,88103.0,0.11375139]
[1745291288089,0.9099199,88104.0,88103.0,0.11375139]
[1745291288389,1.0599199,88104.0,88103.0,0.11375139]
[1745291288589,0.8099199,88104.0,88103.0,0.11375139]
[1745291290291,1.0599199,88104.0,88103.0,0.11375139]
[1745291290495,0.8099199,88104.0,88103.0,0.11375139]
[1745291291095,0.6179199,88104.0,88103.0,0.11375139]
[1745291291491,0.3628,88104.0,88103.0,0.11375139]
[1745291291695,0.07632,88117.0,88116.0,0.1134844]
[1745291291890,0.3608,88136.0,88126.0,0.1134716]
[1745291292205,0.3608,88154.0,88131.0,0.5673226]
[1745291292497,0.0323,88163.0,88162.0,0.1134252]
[1745291292799,0.00010801,88172.0,88171.0,0.1134137]
[1745291292994,0.00010801,88172.0,88171.0,0.1237298]
[1745291293385,0.0312,88175.0,88174.0,0.1134098]
[1745291293591,0.35748,88175.0,88174.0,0.1134098]
[1745291293786,0.10748,88175.0,88174.0,0.1134098]
[1745291294094,0.10744,88175.0,88174.0,0.1134098]
[1745291294298,0.10744,88175.0,88174.0,0.1104098]
[1745291294892,0.10844,88175.0,88174.0,0.1104098]
[1745291295195,0.10944,88175.0,88174.0,0.1104098]
[1745291296094,0.30144,88175.0,88174.0,0.1104098]
[1745291298101,0.10944,88175.0,88174.0,0.1104098]
[1745291298993,0.3608,88149.0,88081.0,0.3608]
[1745291299193,0.3608,88114.0,88096.0,0.0305]
[1745291299394,0.3708,88114.0,88113.0,0.34421999]
[1745291299596,0.3608,88114.0,88113.0,0.34429999]
[1745291299989,0.4234,88114.0,88113.0,0.34429999]
[1745291300194,0.6154,88114.0,88113.0,0.34429999]
[1745291300702,0.6354,88114.0,88113.0,0.1145683]
[1745291300996,0.6354,88114.0,88113.0,0.1155683]
[1745291301501,0.6354,88114.0,88113.0,0.1165683]
[1745291301989,0.6354,88114.0,88113.0,0.1155683]
[1745291302190,0.6354,88114.0,88113.0,0.1165683]
[1745291302591,0.6154,88114.0,88113.0,0.1165683]
[1745291302894,0.6154,88114.0,88113.0,0.1164883]
[1745291303095,0.6154,88114.0,88113.0,0.1165683]
[1745291303397,0.6154,88114.0,88113.0,0.00308]
[1745291303595,0.6154,88114.0,88113.0,0.1155683]
[1745291303797,0.6154,88114.0,88113.0,0.1175683]
[1745291303998,0.6164,88114.0,88113.0,0.1185683]
[1745291304297,0.6164,88114.0,88113.0,0.1175683]
[1745291304595,0.6164,88114.0,88113.0,0.1145683]
[1745291304798,0.6164,88114.0,88113.0,0.1175683]
[1745291306001,0.6364,88114.0,88113.0,0.1175683]
[1745291306393,0.5538,88114.0,88113.0,0.1175683]
[1745291307091,0.3618,88114.0,88113.0,0.1792683]
[1745291311104,0.3618,88114.0,88113.0,0.2927563]
[1745291311305,0.00017019,88122.0,88121.0,0.113478]
[1745291311600,9e-08,88122.0,88121.0,0.113478]
[1745291311801,9e-08,88122.0,88121.0,0.226958]
[1745291311997,9e-08,88122.0,88121.0,0.289858]
[1745291312193,9e-08,88122.0,88121.0,0.481858]
[1745291312800,9e-08,88122.0,88121.0,0.482858]
[1745291313502,0.00100009,88122.0,88121.0,0.484858]
[1745291313704,0.00100009,88122.0,88113.0,8e-05]
[1745291313705,0.25100009,88122.0,88113.0,8e-05]
[1745291313906,0.3608,88114.0,88086.0,0.00510861]
[1745291314093,0.3608,88092.0,88091.0,0.1135167]
[1745291314404,0.7216,88092.0,88091.0,0.1135167]
[1745291314604,0.10674,88098.0,88097.0,0.1135089]
[1745291314804,0.46754,88098.0,88097.0,0.1135089]
[1745291315205,0.65954,88098.0,88097.0,0.1125089]
[1745291316108,0.5474796,88098.0,88097.0,0.1125089]
[1745291316510,0.5474796,88098.0,88097.0,0.1155089]
[1745291316713,0.5474796,88098.0,88097.0,0.1794089]
[1745291316901,0.5044851,88098.0,88097.0,0.1794089]
[1745291317103,0.03037019,88106.0,88105.0,0.1134986]
[1745291317613,0.03037019,88106.0,88105.0,0.1124986]
[1745291318000,0.03037019,88106.0,88105.0,0.1770986]
[1745291318603,0.03137019,88106.0,88105.0,0.1810986]
[1745291318998,0.03137019,88106.0,88105.0,0.1830986]
[1745291319199,0.22337019,88106.0,88105.0,0.1830986]
[1745291319404,0.25497019,88106.0,88105.0,0.1830986]
[1745291319802,0.25497019,88106.0,88105.0,0.1194986]
[1745291319999,0.25497019,88106.0,88098.0,0.0567536]
[1745291320199,0.3608,88099.0,88098.0,0.1702612]
[1745291321205,0.5528,88099.0,88098.0,0.1753412]
[1745291321800,0.5528,88099.0,88098.0,0.1703412]
[1745291322007,0.5538,88099.0,88098.0,0.1773412]
[1745291322212,0.001,88099.0,88098.0,0.1773412]
[1745291322412,0.001,88099.0,88098.0,0.1763412]
[1745291322607,0.001,88099.0,88098.0,0.1783412]
[1745291323915,0.001,88099.0,88098.0,0.1782612]
[1745291324114,0.001,88099.0,88098.0,0.1783412]
[1745291325310,0.193,88099.0,88098.0,0.1783412]
[1745291329227,0.03177019,88106.0,88098.0,0.121588]
[1745291329515,0.00017019,88106.0,88105.0,0.1134986]
[1745291330117,0.00017019,88106.0,88105.0,0.2269986]
[1745291330318,0.00017019,88106.0,88105.0,0.2897986]
[1745291330619,0.00117019,88106.0,88105.0,0.2897986]
[1745291331210,0.00117019,88106.0,88105.0,0.1772986]
[1745291333311,0.19317019,88106.0,88105.0,0.1772986]
[1745291333712,0.19317019,88106.0,88105.0,0.1144986]
[1745291335211,0.19317019,88106.0,88105.0,0.1145786]
[1745291335716,0.55397019,88106.0,88105.0,0.1145786]
[1745291339221,0.36197019,88106.0,88105.0,0.1145786]
[1745291339919,0.00117019,88106.0,88105.0,0.1145786]
[1745291340111,0.55397019,88106.0,88105.0,0.1145786]
[1745291342620,0.91747019,88106.0,88083.0,0.056763]
[1745291342820,0.3608,88094.0,88089.0,0.00017019]
[1745291343015,0.3608,88090.0,88089.0,0.11368939]
[1745291343613,0.0636,88093.0,88092.0,0.1135154]
[1745291344413,0.0328,88093.0,88092.0,0.1135154]
[1745291344825,0.0333,88101.0,88100.0,0.1135051]
[1745291345023,0.0661,88101.0,88100.0,0.1135051]
[1745291345218,0.2581,88101.0,88100.0,0.1135051]
[1745291346021,0.2581,88101.0,88100.0,0.1125051]
[1745291346221,0.0661,88101.0,88100.0,0.1451051]
[1745291346627,0.0661,88101.0,88100.0,0.1461051]
[1745291347128,0.2581,88101.0,88100.0,0.1461051]
[1745291347316,0.2591,88101.0,88100.0,0.1185051]
[1745291348717,0.2591,88101.0,88100.0,0.1185851]
[1745291349229,0.2591,88101.0,88100.0,0.00608]
[1745291349423,0.37260801,88101.0,88089.0,0.00017019]
[1745291349629,0.3608,88093.0,88092.0,0.1135154]
[1745291350125,0.5528,88093.0,88092.0,0.1135954]
[1745291351919,0.5528,88093.0,88092.0,0.1460954]
[1745291352125,0.6187,88093.0,88092.0,0.1460954]
[1745291352320,0.2589,88093.0,88092.0,0.1135954]
[1745291352728,0.2579,88093.0,88092.0,0.1135954]
[1745291352924,0.2589,88093.0,88092.0,0.1135954]
[1745291353120,0.2609,88093.0,88092.0,0.1135954]
[1745291353324,0.6217,88093.0,88092.0,0.1135954]
[1745291353827,0.6207,88093.0,88092.0,0.1135954]
[1745291354726,0.6197,88093.0,88092.0,0.1773954]
[1745291355227,0.6207,88093.0,88092.0,0.1773954]
[1745291355621,0.6197,88093.0,88092.0,0.1773954]
[1745291355822,0.6197,88093.0,88092.0,0.1783954]
[1745291356022,0.5868,88093.0,88092.0,0.1783954]
[1745291356224,0.3948,88093.0,88092.0,0.1783954]
[1745291356428,0.3938,88093.0,88092.0,0.1773954]
[1745291356624,0.3948,88093.0,88092.0,0.1783954]
[1745291358032,0.3958,88093.0,88092.0,0.1783954]
[1745291358630,0.3948,88093.0,88092.0,0.1783954]
[1745291359224,0.3938,88093.0,88092.0,0.1773954]
[1745291359422,0.034,88093.0,88092.0,0.1783954]
[1745291360531,0.1135103,88096.0,88092.0,0.1783954]
[1745291360532,0.3608,88115.0,88105.0,0.1134986]
[1745291360733,0.3608,88115.0,88102.0,0.056751]
[1745291360734,0.3608,88115.0,88114.0,0.113487]
[1745291360928,0.3608,88115.0,88114.0,0.112487]
[1745291361533,0.3608,88115.0,88114.0,0.175987]
[1745291362632,0.3608,88115.0,88114.0,0.18336513]
[1745291363336,0.3618,88115.0,88114.0,0.18636513]
[1745291364743,0.3618,88115.0,88114.0,0.177987]
[1745291366439,0.3618,88115.0,88114.0,0.114567]
[1745291366634,0.4255,88115.0,88114.0,0.114567]
[1745291367135,0.6175,88115.0,88114.0,0.114567]
[1745291367642,0.7309857,88115.0,88114.0,0.114567]
[1745291368038,0.7309857,88115.0,88114.0,0.00308]
[1745291368340,0.1134948,88108.0,88107.0,0.113496]
[1745291368840,0.1135051,88101.0,88099.0,0.056753]
[1745291369146,0.1135051,88101.0,88100.0,0.1135039]
[1745291369838,0.1135022,88103.0,88102.0,0.1135012]
[1745291370428,0.1135022,88103.0,88102.0,0.1125012]
[1745291370634,0.1135022,88103.0,88102.0,0.1125812]
[1745291371144,0.3055022,88103.0,88102.0,0.1125812]
[1745291372435,0.3065022,88103.0,88102.0,0.1135812]
[1745291372632,0.3065022,88103.0,88102.0,0.00108]
[1745291373135,0.3065022,88103.0,88102.0,8e-05]
[1745291374036,0.6673022,88103.0,88102.0,8e-05]
[1745291374942,0.79080621,88103.0,88102.0,8e-05]
[1745291375144,0.6773022,88103.0,88102.0,8e-05]
[1745291375335,0.0567563,88095.0,88091.0,0.1135163]
[1745291375646,0.1135179,88090.0,88089.0,0.11368809]
[1745291376041,0.1135179,88090.0,88089.0,0.11376809]
[1745291376243,0.3055179,88090.0,88089.0,0.11376809]
[1745291376744,0.3055179,88090.0,88089.0,0.11576809]
[1745291377646,0.6663179,88090.0,88089.0,0.11576809]
[1745291378150,0.6663179,88090.0,88089.0,0.00225019]
[1745291378444,0.6663179,88090.0,88089.0,0.11576939]
[1745291378839,0.6673179,88090.0,88089.0,0.11676939]
[1745291379247,0.5538,88090.0,88089.0,0.11676939]
[1745291379448,0.6673179,88090.0,88089.0,0.00325019]
[1745291379642,0.6991179,88090.0,88089.0,0.00325019]
[1745291379847,0.6991179,88090.0,88089.0,0.00317019]
[1745291380045,0.1702903,88085.0,88084.0,0.1135241]
[1745291380650,0.0567634,88084.0,88081.0,0.032908]
[1745291380946,0.4743283,88082.0,88081.0,0.1463281]
[1745291381147,0.4743283,88082.0,88081.0,0.1464081]
[1745291382154,0.6663283,88082.0,88081.0,0.1464081]
[1745291382446,0.6663283,88082.0,88081.0,0.1463281]
[1745291382641,0.6663283,88082.0,88081.0,0.1464081]
[1745291382843,0.6673283,88082.0,88081.0,0.1484081]
[1745291383444,0.6673283,88082.0,88081.0,0.00108]
[1745291383948,0.6673283,88082.0,88081.0,0.001]
[1745291384151,0.6673283,88082.0,88081.0,0.00108]
[1745291384348,0.6673283,88082.0,88081.0,0.1146095]
[1745291384539,0.6673283,88082.0,88081.0,0.00108]
[1745291384742,0.6989283,88082.0,88081.0,0.00108]
[1745291386150,0.6989283,88082.0,88081.0,0.1146095]
[1745291387056,0.6989283,88082.0,88081.0,0.00108]
[1745291387347,0.1135373,88075.0,88074.0,0.03087029]
[1745291387547,0.193,88082.0,88081.0,8e-05]
[1745291387749,0.193,88082.0,88081.0,0.1136095]
[1745291387945,0.3370283,88082.0,88081.0,8e-05]
[1745291388141,0.1135373,88075.0,88074.0,0.03087029]
[1745291388347,0.4743373,88075.0,88074.0,0.00017029]
[1745291388546,0.4753373,88075.0,88074.0,0.00017029]
[1745291388938,0.5383373,88075.0,88074.0,0.00025029]
[1745291389139,0.7303373,88075.0,88074.0,0.00025029]
[1745291389545,0.7303373,88075.0,88074.0,0.00225029]
[1745291390040,0.7313373,88075.0,88074.0,0.00025029]
[1745291390549,0.1135427,88072.0,88071.0,0.1135419]
[1745291390948,0.1784427,88072.0,88071.0,0.1135419]
[1745291391147,0.1135424,88071.0,88050.0,0.10503336]
[1745291391347,0.3020876,88036.0,88035.0,0.12355104]
[1745291391551,0.1135953,88030.0,88020.0,0.28841461]
[1745291391754,0.1235953,88030.0,88020.0,0.28841461]
[1745291391952,0.1235953,88030.0,88021.0,0.0622]
[1745291392260,0.3155953,88030.0,88021.0,0.0622]
[1745291392557,0.4291953,88030.0,88020.0,0.28841461]
[1745291392958,0.4301953,88030.0,88020.0,0.28841461]
[1745291393256,0.4321953,88030.0,88029.0,0.23081169]
[1745291393456,0.5083953,88030.0,88029.0,0.23081169]
[1745291394150,0.2812,88030.0,88029.0,0.34440829]
[1745291394350,0.3837953,88030.0,88029.0,0.34440829]
[1745291394551,0.3847953,88030.0,88029.0,0.34440829]
[1745291395050,0.3847953,88030.0,88029.0,0.40690829]
[1745291395356,0.1917953,88030.0,88029.0,0.40690829]
[1745291395852,0.0782,88030.0,88029.0,0.40690829]
[1745291396258,0.0782,88030.0,88029.0,0.1761766]
[1745291396654,0.002,88030.0,88029.0,0.1761766]
[1745291397054,0.001,88030.0,88029.0,0.1761766]
[1745291397258,0.002,88030.0,88029.0,0.1761766]
[1745291397469,0.001,88030.0,88029.0,0.1761766]
[1745291397654,0.1155953,88030.0,88029.0,0.1761766]
[1745291397957,0.002,88030.0,88029.0,0.1761766]
[1745291398162,0.0326,88030.0,88029.0,0.06258]
[1745291398456,0.1461953,88030.0,88029.0,8e-05]
[1745291398655,0.1461953,88030.0,88000.0,0.1597169]
[1745291398656,0.1136134,88016.0,88000.0,0.1597169]
[1745291398856,0.3608,88016.0,88015.0,0.1136147]
[1745291399057,0.3608,88016.0,88015.0,0.1136947]
[1745291399252,0.3109,88016.0,88015.0,0.1136947]
[1745291399948,0.3109,88016.0,88015.0,0.1146947]
[1745291400455,0.3109,88016.0,88015.0,0.2283107]
[1745291400654,0.4175895,88043.0,88023.0,0.0568019]
[1745291400856,0.113579,88046.0,88038.0,0.0557924]
[1745291401157,0.1135805,88044.0,88043.0,0.0567887]
[1745291402160,0.1135805,88044.0,88043.0,0.0884887]
[1745291402359,0.1135805,88044.0,88043.0,0.1197887]
[1745291402559,0.1135805,88044.0,88014.0,0.4176077]
[1745291402560,0.1135876,88036.0,88014.0,0.4176077]
[1745291402761,0.1136031,88024.0,88023.0,0.1459043]
[1745291403060,0.4744005,88026.0,88025.0,0.1136018]
[1745291404157,0.6664005,88026.0,88025.0,0.1136018]
[1745291404555,0.1136031,88024.0,88023.0,0.08951542]
[1745291405265,0.113616,88014.0,88013.0,0.000108]
[1745291405463,0.170429,88013.0,88012.0,0.0568082]
[1745291405664,0.0568096,88013.0,88012.0,0.0568082]
[1745291406458,0.0332,88016.0,88015.0,0.1136147]
[1745291406659,0.0332,88016.0,88013.0,0.0568081]
[1745291406660,0.1136127,88017.0,88016.0,0.1136134]
[1745291406859,0.43704,88018.0,88017.0,0.1136121]
[1745291407364,0.4744108,88018.0,88017.0,0.1136121]
[1745291407755,0.4744108,88018.0,88017.0,0.1116121]
[1745291408156,0.4744108,88018.0,88015.0,0.0608068]
[1745291408157,0.1136134,88016.0,88015.0,0.004]
[1745291408556,0.1136173,88013.0,88012.0,0.1136178]
[1745291409554,0.1704328,88011.0,88010.0,0.1136207]
[1745291409770,0.1136224,88009.0,88008.0,0.06192484]
[1745291409960,0.4744224,88009.0,88008.0,0.00511314]
[1745291410162,0.6664224,88009.0,88008.0,0.00511314]
[1745291410556,0.6664224,88009.0,88008.0,0.00519314]
[1745291411258,0.6674224,88009.0,88008.0,0.00919314]
[1745291411461,0.6684224,88009.0,88008.0,0.01219314]
[1745291412157,0.4764224,88009.0,88008.0,0.01211314]
[1745291412952,0.4764224,88009.0,88008.0,0.01219314]
[1745291413153,0.6684224,88009.0,88008.0,0.01219314]
[1745291413564,0.5548,88009.0,88008.0,0.12581684]
[1745291413768,0.194,88009.0,88008.0,0.12581684]
[1745291414065,0.194,88009.0,88008.0,0.48661684]
[1745291414275,0.002,88009.0,88008.0,0.48661684]
[1745291417157,0.002,88009.0,88008.0,0.48653684]
[1745291418464,0.002,88009.0,88008.0,0.37291314]
[1745291418465,0.12429808,88009.0,88008.0,0.37291314]
[1745291418660,0.12429808,88009.0,88008.0,0.01211314]
[1745291418855,0.12429808,88009.0,88008.0,0.01219314]
[1745291419267,0.31629808,88009.0,88008.0,0.01219314]
[1745291419658,0.34799808,88009.0,88008.0,0.01219314]
[1745291422274,0.35799808,88009.0,88008.0,0.01219314]
[1745291422466,0.35799808,88009.0,88000.0,0.1029]
[1745291422467,0.1136328,88001.0,88000.0,0.1029]
[1745291422657,0.5506728,88001.0,88000.0,0.0029]
[1745291422858,0.1136405,87995.0,87988.0,0.0308]
[1745291423663,0.1136482,87989.0,87988.0,0.0308]
[1745291424262,0.1743482,87989.0,87988.0,0.0308]
[1745291425158,0.1753482,87989.0,87988.0,0.0328]
[1745291426066,0.1753482,87989.0,87988.0,0.002]
[1745291426458,0.1753482,87989.0,87982.0,0.03781465]
[1745291426459,0.0568261,87986.0,87982.0,0.00511465]
[1745291426658,0.474456,87983.0,87982.0,0.00511465]
[1745291427064,0.666456,87983.0,87982.0,0.00511465]
[1745291427663,0.1136676,87974.0,87968.0,0.1136748]
[1745291427861,0.1136676,87974.0,87946.0,0.3608]
[1745291427862,0.1136676,87974.0,87973.0,0.04486874]
[1745291428063,0.1136676,87974.0,87973.0,0.04467191]
[1745291428264,0.3686676,87974.0,87973.0,0.04475191]
[1745291428467,0.3686676,87974.0,87973.0,0.04467191]
[1745291428664,0.3686676,87974.0,87973.0,0.04475191]
[1745291429562,0.3696676,87974.0,87973.0,0.04475191]
[1745291430066,0.3696676,87974.0,87973.0,8e-05]
[1745291430670,0.3706676,87974.0,87973.0,8e-05]
[1745291432465,0.3706676,87974.0,87973.0,0.1137489]
[1745291432669,0.33748,87974.0,87973.0,8e-05]
[1745291432970,0.4511476,87974.0,87973.0,0.1137489]
[1745291433162,0.2591476,87974.0,87973.0,8e-05]
[1745291433362,0.1136702,87972.0,87971.0,0.1136707]
[1745291434670,0.1146702,87972.0,87971.0,0.1136707]
[1745291435567,0.1136715,87971.0,87970.0,0.0329]
[1745291435769,0.1777715,87971.0,87970.0,0.1465728]
[1745291435967,0.1705143,87969.0,87968.0,0.113675]
[1745291436163,0.1705143,87969.0,87968.0,0.146575]
[1745291436870,0.1705143,87969.0,87968.0,0.0329]
[1745291437265,0.113678,87966.0,87962.0,0.0001458]
[1745291437460,0.1136793,87965.0,87964.0,0.1136798]
[1745291437672,0.1457793,87965.0,87964.0,0.1136798]
[1745291437967,0.1136831,87962.0,87961.0,0.0689]
[1745291438166,0.1136831,87962.0,87961.0,0.0341]
[1745291438361,0.1136831,87962.0,87961.0,0.1477844]
[1745291438866,0.1457831,87962.0,87961.0,0.1477844]
[1745291439374,0.1467831,87962.0,87961.0,0.1477844]
[1745291439676,0.002,87962.0,87961.0,0.1477844]
[1745291442069,0.1156831,87962.0,87961.0,0.0341]
[1745291443378,0.1156831,87962.0,87961.0,0.1477844]
[1745291443774,0.002,87962.0,87961.0,0.1477844]
[1745291444578,0.1156831,87962.0,87961.0,0.1477844]
[1745291444780,0.00170448,87962.0,87961.0,0.1477844]
[1745291445277,0.11538758,87962.0,87961.0,0.1477844]
[1745291445882,0.00170448,87962.0,87961.0,0.1477844]
[1745291446180,0.11538758,87962.0,87961.0,0.1477844]
[1745291446378,0.00170448,87962.0,87961.0,0.1477844]
[1745291446775,0.00170448,87962.0,87961.0,0.0341]
[1745291446776,0.18248758,87962.0,87961.0,0.0341]
[1745291446970,0.1136844,87961.0,87960.0,0.0319]
[1745291447379,0.1807844,87961.0,87960.0,0.0319]
[1745291447681,0.1807844,87961.0,87960.0,0.03198]
[1745291448384,0.1817844,87961.0,87960.0,0.03198]
[1745291448885,0.1827844,87961.0,87960.0,0.03198]
[1745291449183,0.1827844,87961.0,87960.0,0.1456657]
[1745291449575,0.1827844,87961.0,87960.0,0.03198]
[1745291450080,0.1827844,87961.0,87960.0,0.06468]
[1745291450473,0.1827844,87961.0,87960.0,0.0646]
[1745291450678,0.1827844,87961.0,87960.0,0.06468]
[1745291451276,0.1827844,87961.0,87960.0,8e-05]
[1745291451973,0.1136896,87957.0,87956.0,0.00511617]
[1745291452174,0.3056896,87957.0,87956.0,0.00511617]
[1745291452580,0.3712896,87957.0,87956.0,0.00511617]
[1745291453284,0.3722896,87957.0,87956.0,0.00519617]
[1745291453674,0.3732896,87957.0,87956.0,0.00519617]
[1745291455879,0.3732896,87957.0,87956.0,0.03889617]
[1745291456078,0.1812896,87957.0,87956.0,0.03889617]
[1745291456483,0.1812896,87957.0,87900.0,0.105]
[1745291456484,0.1885,87947.0,87900.0,0.105]
[1745291456777,0.1885,87947.0,87917.0,0.11544742]
[1745291456778,0.3608,87918.0,87917.0,0.11544742]
[1745291456977,0.0568655,87925.0,87919.0,0.1137379]
[1745291457177,0.11374,87918.0,87917.0,0.00178612]
[1745291457482,0.11374,87918.0,87917.0,0.03688612]
[1745291457779,0.0568683,87921.0,87918.0,0.0568695]
[1745291457979,0.1137349,87922.0,87921.0,0.0568675]
[1745291458173,0.1137349,87922.0,87917.0,0.11552592]
[1745291458174,0.11374,87918.0,87917.0,0.11552592]
[1745291458379,0.11374,87918.0,87917.0,0.11544592]
[1745291458685,0.001,87918.0,87917.0,0.15062592]
[1745291459980,0.11374,87918.0,87917.0,0.20749602]
[1745291460283,0.47454,87918.0,87917.0,0.00178612]
[1745291460486,0.3608,87918.0,87917.0,0.11544742]
[1745291460679,0.001,87922.0,87921.0,0.1127361]
[1745291461583,0.0568606,87933.0,87917.0,0.00178612]
[1745291461772,0.001,87918.0,87917.0,0.11552742]
[1745291462177,0.001,87918.0,87917.0,0.22927142]
[1745291462482,0.00026,87923.0,87922.0,0.1127349]
[1745291462786,0.0568493,87950.0,87940.0,0.1137116]
[1745291462983,0.0325,87955.0,87940.0,0.1137116]
[1745291463186,0.0568597,87934.0,87922.0,0.3608]
[1745291463484,0.001,87918.0,87917.0,0.11544742]
[1745291463870,0.001,87918.0,87917.0,0.47919142]
[1745291464875,0.1137302,87926.0,87925.0,0.113731]
[1745291465282,0.1137302,87926.0,87925.0,0.227463]
[1745291465987,0.11374,87918.0,87917.0,0.00270612]
[1745291466177,0.47454,87918.0,87917.0,0.00270612]
[1745291466374,0.47454,87918.0,87917.0,0.11544742]
[1745291466683,0.47454,87918.0,87917.0,0.11552742]
[1745291466881,0.4334,87918.0,87917.0,0.11552742]
[1745291467081,0.4344,87918.0,87917.0,0.11652742]
[1745291467486,0.3618,87918.0,87917.0,0.11652742]
[1745291468578,0.3628,87918.0,87917.0,0.11652742]
[1745291469473,0.002,87918.0,87917.0,0.23027142]
[1745291469676,0.3608,87932.0,87917.0,0.7284679]
[1745291469872,0.3608,87932.0,87931.0,0.1137232]
[1745291470880,0.3608,87932.0,87931.0,0.11509565]
[1745291471185,0.3618,87932.0,87931.0,0.11509565]
[1745291471385,0.3618,87932.0,87931.0,0.11533032]
[1745291471777,0.614524,87932.0,87931.0,0.00160712]
[1745291471974,0.9792459,87932.0,87931.0,0.00260712]
[1745291472175,1.1712459,87932.0,87931.0,0.00268712]
[1745291472376,1.2083459,87932.0,87931.0,0.00268712]
[1745291472689,1.2083459,87932.0,87931.0,0.00468712]
[1745291472690,1.2093459,87932.0,87931.0,0.00468712]
[1745291473575,1.2093459,87932.0,87931.0,0.00492179]
[1745291473785,0.9593459,87932.0,87931.0,0.00492179]
[1745291473984,0.11374,87918.0,87917.0,0.00170612]
[1745291474284,0.66654,87918.0,87917.0,0.00170612]
[1745291474593,0.66654,87918.0,87917.0,0.00178612]
[1745291475193,0.47554,87918.0,87917.0,0.00378612]
[1745291475890,0.47654,87918.0,87917.0,0.00478612]
[1745291476480,0.57654,87918.0,87917.0,0.00478612]
[1745291476678,0.47654,87918.0,87917.0,0.00478612]
[1745291476890,0.48654,87918.0,87917.0,0.00478612]
[1745291477079,0.48554,87918.0,87917.0,0.00278612]
[1745291477278,0.48654,87918.0,87917.0,0.00278612]
[1745291477478,0.48754,87918.0,87917.0,0.00178612]
[1745291477881,0.48654,87918.0,87917.0,0.00178612]
[1745291478088,0.48754,87918.0,87917.0,0.00178612]
[1745291478397,0.47754,87918.0,87917.0,0.00178612]
[1745291479090,0.47554,87918.0,87917.0,0.00178612]
[1745291479292,0.47654,87918.0,87917.0,0.00178612]
[1745291480394,0.48654,87918.0,87917.0,0.00178612]
[1745291481397,0.52094,87918.0,87917.0,0.00178612]
[1745291482286,0.51994,87918.0,87917.0,0.00178612]
[1745291482483,0.52094,87918.0,87917.0,0.00178612]